[Event "Cattolica Chess Festival 2022"]
[Site "Cattolica"]
[Date "2022.06.07"]
[Round "4.10"]
[White "Andreev, Konstantin"]
[Black "Willow, Jonah B"]
[Result "1/2-1/2"]
[ECO "C54"]
[WhiteElo "2238"]
[BlackElo "2401"]
[Annotator "TA"]
[PlyCount "61"]
[EventDate "2022.06.04"]
[EventCountry "ITA"]
[SourceTitle "playchess.com"]
[Source "ChessBase"]
[SourceQuality "1"]
[TimeControl "5400+30"]

{[%evp 21,61,36,56,0,41,15,32,11,33,16,52,26,12,24,50,-14,84,82,105,115,107,106,106,115,119,0,0,0,0,0,0,0,0,0,0,0,11,0,0,0,0,0]} 1. e4 {[%emt 0:30:02]} e5 {[%emt 0:33:09]} 2. Nf3 {[%emt 0:00:07]} Nc6 {[%emt 0:00:08]} 3. Bc4 {[%emt 0:00:07]} Nf6 {[%emt 0:00:12]} 4. d3 {[%emt 0:00:06]} Bc5 {[%emt 0:00:05]} 5. O-O {[%emt 0:00:06]} O-O {[%emt 0:00:13]} 6. h3 {[%emt 0:00:27]} d6 {[%emt 0:02:40]} 7. c3 {[%emt 0:01:12]} a6 {[%emt 0:00:31]} 8. Bb3 {[%emt 0:00:27]} Ba7 {[%emt 0:11:17]} 9. Nbd2 {[%emt 0:00:53][%cal Bb1d2,Bd2f1,Bf1g3,Bg3h5][%mdl 32]} Ne7 {[%emt 0:02:31]} 10. Re1 {[%emt 0:00:57]} Ng6 {[%emt 0:00:34]} 11. Nf1 {[%emt 0:01:03]} Nh5 {[%emt 0:03:05]} 12. Be3 {[%emt 0:05:09] C54: Giuoco Piano: 4 c3 Nf6, main lines with 5 d4 and 5 d3.} ({White should try} 12. Bg5 $14 Nf6 13. d4) 12... Nhf4 {[%emt 0:03:05]} 13. Ng3 {[%emt 0:00:59]} Be6 {[%emt 0:06:11]} 14. d4 {[%emt 0:04:09] White is slightly better.} Qc8 {[%emt 0:05:28][%cal Oe6h3]} 15. Ng5 {[%emt 0:19:44] [#]} Bd7 $146 {[%emt 0:09:51]} ({Predecessor:} 15... Bxb3 16. axb3 h6 17. Nf3 Qe6 18. d5 Qf6 19. Kh2 Ne7 20. b4 Qg6 21. Qd2 Bxe3 22. fxe3 {½-½ (71) Ochsner,T (2362)-Bjornsson,S (2302) Rethymno 2003}) 16. Bxf4 {[%emt 0:06:16]} (16. Nh5 $5 {[%cal Rh5f4]} Ne6 17. Nf3 $14) 16... Nxf4 {[%emt 0:03:23]} 17. Nh5 {[%emt 0:02:07] And now Nxf4 would win.} Qd8 {[%emt 0:03:23]} 18. h4 {[%emt 0:03:09]} ({Better is} 18. Nxf7 $14 Rxf7 19. Nxf4 exf4 20. e5 (20. Bxf7+ Kxf7 21. Qh5+ Kg8 $14)) 18... h6 {[%emt 0:02:45]} (18... Ne6 $1 $11) 19. Nxf4 $16 {[%emt 0:01:13] Chess con chili.} exf4 {[%emt 0:00:04] [#]} 20. Qh5 {[%emt 0:01:05]} ({Don't take} 20. Nf3 Bg4 $14) 20... Qf6 {[%emt 0:02:56] [#]} (20... hxg5 $2 21. hxg5 Bg4 22. Qxg4 $18) 21. e5 $1 {[%emt 0:04:55]} dxe5 {[%emt 0:02:31]} 22. Rxe5 {[%emt 0:06:42]} Rae8 {[%emt 0:04:37]} 23. Rae1 {[%emt 0:00:49] 0x0.001e368edb52dp-1022s more active pieces.} Rxe5 {[%emt 0:00:09] The position is equal.} 24. Rxe5 {[%emt 0:00:12]} hxg5 {[%emt 0:01:20]} 25. hxg5 {[%emt 0:00:17]} g6 {[%emt 0:00:01] Hoping for ...Qxe5.} 26. gxf6 {[%emt 0:01:24] Qxg6+ would kill now.} gxh5 {[%emt 0:00:01]} 27. Bc2 {[%emt 0:01:06] Strongly threatening Rg5+.} Rd8 {[%emt 0:02:52] ...Bg4 is the strong threat.} 28. Rg5+ {[%emt 0:00:13]} Kh8 $1 {[%emt 0:00:12]} 29. Rxh5+ {[%emt 0:00:24]} Kg8 {[%emt 0:00:01]} 30. Rg5+ {[%emt 0:01:05]} Kh8 $1 {[%emt 0:00:01]} 31. Rh5+ {[%emt 0:00:05] Weighted Error Value: White=0.20 (precise) /Black=0.18 (very precise)} 1/2-1/2

[Event "Cattolica Chess Festival 2022"]
[Site "Cattolica"]
[Date "2022.06.08"]
[Round "5.3"]
[White "Schmider, Niklas"]
[Black "Basso, Pier Luigi"]
[Result "1-0"]
[ECO "C84"]
[WhiteElo "2393"]
[BlackElo "2570"]
[Annotator "TA"]
[PlyCount "111"]
[EventDate "2022.06.04"]
[EventCountry "ITA"]
[SourceTitle "playchess.com"]
[Source "ChessBase"]
[SourceQuality "1"]
[TimeControl "5400+30"]

{[%evp 13,111,32,36,51,56,49,52,47,56,47,50,36,58,61,58,57,74,59,72,64,64,62,56,54,65,56,85,23,16,26,17,19,20,30,100,122,129,107,133,58,72,65,65,66,72,77,79,50,52,20,27,25,105,105,109,113,117,116,99,74,123,141,117,9,98,91,153,124,172,147,162,127,116,104,179,175,158,137,357,354,349,327,440,395,557,554,636,631,714,689,735,730,710,702,29973,29970,29980,29978,29980,29979]} 1. e4 {[%emt 0:30:04]} e5 {[%emt 0:34:44]} 2. Nf3 {[%emt 0:00:18]} Nc6 {[%emt 0:00:14]} 3. Bb5 {[%emt 0:00:09]} a6 {[%emt 0:00:09]} 4. Ba4 {[%emt 0:00:05]} Nf6 {[%emt 0:00:47]} 5. O-O {[%emt 0:00:37]} Nxe4 {[%emt 0:00:38]} 6. d4 {[%emt 0:00:43]} Be7 {[%emt 0:03:39]} 7. Re1 {[%emt 0:01:29]} b5 {[%emt 0:00:08]} 8. Rxe4 {[%emt 0:00:16] C84: Closed Ruy Lopez: Unusual White 6th moves.} d5 {[%emt 0:00:05] [#]} 9. Nxe5 $1 {[%emt 0:00:19]} Nxe5 {[%emt 0:00:04]} 10. Rxe5 {[%emt 0:00:21] White is slightly better.} bxa4 {[%emt 0:00:06]} 11. Qe2 {[%emt 0:00:16]} c6 {[%emt 0:00:26]} 12. Nc3 {[%emt 0:00:29]} a3 {[%emt 0:00:13]} 13. b3 {[%emt 0:00:32]} Be6 {[%emt 0:01:27]} 14. f4 {[%emt 0:00:34] aiming for f5.} Kf8 {[%emt 0:00:29] [#]} 15. Qf2 $146 {[%emt 0:00:46]} ({Predecessor:} 15. f5 Bd7 16. f6 Bxf6 17. Bxa3+ Kg8 18. Na4 Bxe5 19. dxe5 h5 20. Bd6 Rh6 21. Nc5 {0-1 (81) Wagner,D (2581)-Martinez Alcantara,J (2620) Chess.com INT 2021}) 15... Bd7 {[%emt 0:09:08]} 16. Nb1 {[%emt 0:00:49][%cal Oe5e7] Hoping for Rxe7!} f6 {[%emt 0:02:40]} 17. Re3 {[%emt 0:01:58]} Kf7 {[%emt 0:04:58]} 18. Bxa3 {[%emt 0:05:56]} Bxa3 {[%emt 0:01:01]} 19. Nxa3 {[%emt 0:00:07]} Qa5 {[%emt 0:01:18] [#]} 20. Nb1 {[%emt 0:01:29]} ({White should play} 20. Qe1 $1 $16 {[%cal Re1a5]} Qxe1+ (20... Qxa3 21. b4) 21. Raxe1) 20... Rhe8 $11 {[%emt 0:00:34]} 21. Nc3 {[%emt 0:03:29]} Rxe3 {[%emt 0:00:09]} 22. Qxe3 {[%emt 0:00:04]} Re8 {[%emt 0:00:05]} 23. Qd2 {[%emt 0:02:02]} Qa3 {[%emt 0:06:08]} (23... Bf5 $11) 24. Na4 $16 {[%emt 0:09:08]} Bf5 {[%emt 0:03:19]} 25. c3 {[%emt 0:05:35]} a5 {[%emt 0:05:53]} 26. Nc5 {[%emt 0:02:23]} (26. h3 $16) 26... Bg4 $1 $14 {[%emt 0:01:50]} 27. Qc1 {[%emt 0:14:59]} Qxc1+ {[%emt 0:00:05]} 28. Rxc1 {[%emt 0:00:03][%mdl 4096] Endgame KRB-KRN} Re2 $1 {[%emt 0:00:06]} 29. a4 {[%emt 0:00:35]} Rb2 {[%emt 0:00:09]} 30. Re1 {[%emt 0:01:47]} Bf5 {[%emt 0:01:10][%cal Of5e4]} 31. Kf1 {[%emt 0:00:00]} Bc2 $1 {[%emt 0:00:00]} 32. b4 {[%emt 0:01:19] Strongly threatening Re2.} axb4 {[%emt 0:00:00]} (32... Ra2 $1 $11 {remains equal.}) 33. cxb4 $16 {[%emt 0:00:07]} Rxb4 {[%emt 0:00:00]} 34. a5 {[%emt 0:00:07]} Bf5 {[%emt 0:00:00]} (34... Rxd4 $2 35. a6 Rd3 36. Ra1 $18 (36. Nxd3 Bxd3+ 37. Kf2 Bxa6 $16)) 35. Kf2 {[%emt 0:08:36]} Bc8 {[%emt 0:00:00]} (35... Rxd4 $2 36. a6 Rc4 37. a7 Rxc5 38. a8=Q $18) 36. Ke3 {[%emt 0:02:13]} Ke7 {[%emt 0:00:00]} (36... Rb8 $142) 37. Kd3+ {[%emt 0:01:47]} Kd8 {[%emt 0:00:00]} 38. Re2 {[%emt 0:03:52] Prevents Rb2.} (38. a6 $16 {Threatening mate with a7.} Rb2 39. Ra1) 38... Rb5 {[%emt 0:00:00]} (38... Rc4 $1 $11) 39. Ra2 {[%emt 0:00:34]} Rb8 {[%emt 0:00:00]} (39... Kc7 $142) 40. Kc3 {[%emt 0:00:10]} Kc7 {[%emt 0:00:00]} (40... Ra8 $16) 41. Re2 $18 {[%emt 0:00:34]} Kd8 {[%emt 0:00:00] Against Re7} 42. Rb2 {[%emt 0:01:55] Against Rb1} Ra8 {[%emt 0:00:12]} 43. Kb4 {[%emt 0:00:43]} Kc7 {[%emt 0:01:35]} (43... Rb8+ $16 {might work better.} 44. Ka3 Rxb2 45. Kxb2 Kc7) 44. Re2 {[%emt 0:00:20] And now Re7+ would win.} Kd8 {[%emt 0:00:06] Inhibits Re7.} 45. Ka4 {[%emt 0:00:25] White is more active.} Ba6 $2 {[%emt 0:03:23] This costs Black the game.} (45... h5 $16 {was worth a try.} 46. g3 Bg4) 46. Re6 {[%emt 0:01:47]} Bb5+ {[%emt 0:01:33]} 47. Kb4 {[%emt 0:00:05] Black must now prevent Rd6+.} Ra7 {[%emt 0:00:35]} 48. Re3 {[%emt 0:01:28]} Bf1 {[%emt 0:02:17]} (48... g5 $142 49. Re6 gxf4 50. Rxf6 Bf1) 49. a6 {[%emt 0:00:49]} Bxa6 {[%emt 0:05:23]} 50. Ra3 {[%emt 0:00:08]} Re7 {[%emt 0:00:03]} 51. Rxa6 {[%emt 0:00:31] Ra8+ is the strong threat.} Re2 {[%emt 0:00:01]} 52. Ra7 {[%emt 0:00:35]} Rb2+ {[%emt 0:00:52]} 53. Ka5 {[%emt 0:00:18]} Rxg2 {[%emt 0:00:04]} 54. Kb6 {[%emt 0:00:21] White mates.} Ke8 {[%emt 0:00:17]} 55. Kxc6 {[%emt 0:00:28]} Kf8 {[%emt 0:00:07]} 56. Ne6+ {[%emt 0:00:21] Weighted Error Value: White=0.12 (very precise) /Black=0.38} 1-0

[Event "Cattolica Chess Festival 2022"]
[Site "Cattolica"]
[Date "2022.06.08"]
[Round "5.4"]
[White "Brunello, Sabino"]
[Black "Ceres, Dragos"]
[Result "1-0"]
[ECO "D63"]
[WhiteElo "2521"]
[BlackElo "2380"]
[Annotator "TA"]
[PlyCount "99"]
[EventDate "2022.06.04"]
[EventCountry "ITA"]
[SourceTitle "playchess.com"]
[Source "ChessBase"]
[SourceQuality "1"]
[TimeControl "5400+30"]

{[%evp 14,99,12,13,15,10,50,32,52,31,63,50,56,57,52,60,45,51,67,41,93,77,78,70,83,83,87,89,83,64,70,31,81,72,76,49,54,49,49,49,49,54,51,49,50,50,55,36,42,36,63,58,77,53,51,21,33,0,0,0,0,0,13,0,0,0,24,0,43,42,43,34,43,43,43,43,43,43,47,47,47,47,438,418,461,464,451,437]} 1. d4 {[%emt 0:30:10]} Nf6 {[%emt 0:34:52]} 2. c4 {[%emt 0:00:05]} e6 {[%emt 0:00:05]} 3. Nc3 {[%emt 0:00:02]} d5 {[%emt 0:00:39]} 4. Bg5 {[%emt 0:03:24]} Nbd7 {[%emt 0:00:16]} 5. e3 {[%emt 0:00:21]} c6 {[%emt 0:00:15]} 6. Nf3 {[%emt 0:00:56]} Be7 {[%emt 0:02:04]} 7. Rc1 {[%emt 0:02:03]} O-O {[%emt 0:01:13]} 8. a3 {[%emt 0:04:06]} h6 {[%emt 0:08:57] D63: Queen's Gambit Declined: Classical: 7 Rc1.} 9. Bf4 {[%emt 0:00:46]} dxc4 {[%emt 0:04:58]} 10. Bxc4 {[%emt 0:00:12]} Nd5 {[%emt 0:00:36] White is slightly better.} 11. O-O {[%emt 0:09:03] [#]} N7f6 $146 {[%emt 0:08:26]} ({Predecessor:} 11... Nxf4 12. exf4 c5 13. Ba2 cxd4 14. Nxd4 Nf6 15. Qd2 b6 16. Rfd1 Bb7 17. Qe2 Bc5 18. Nxe6 Qb8 19. Nxf8 Qxf4 20. Ng6 Qg5 21. Nd5 Nxd5 22. Rxc5 {1-0 (22) Rellstab,L-Behle,K Bad Neuenahr 1957}) 12. Be5 {[%emt 0:05:58]} b6 {[%emt 0:08:59]} 13. Qe2 {[%emt 0:03:20]} Bb7 {[%emt 0:02:46]} 14. Rfd1 {[%emt 0:00:08]} Nxc3 {[%emt 0:07:19]} 15. Rxc3 {[%emt 0:00:08]} a5 {[%emt 0:00:52]} 16. Bd3 {[%emt 0:08:14]} b5 {[%emt 0:04:56]} (16... Qc8 $14) 17. Bxf6 {[%emt 0:15:20]} Bxf6 {[%emt 0:00:08]} 18. Be4 {[%emt 0:00:04]} b4 {[%emt 0:00:57]} 19. axb4 {[%emt 0:01:55] 0x0.0022f9fa3c22dp-1022s more active pieces.} axb4 {[%emt 0:00:05]} 20. Rc2 {[%emt 0:00:07]} Qb6 {[%emt 0:00:59]} 21. Nd2 {[%emt 0:00:08]} Rfc8 {[%emt 0:04:21]} 22. f4 {[%emt 0:03:12]} Ra2 {[%emt 0:01:49]} (22... Ba6 $14 23. Qe1 Bb5) 23. Nb3 {[%emt 0:00:37]} Ba6 {[%emt 0:00:09]} 24. Bd3 {[%emt 0:03:49]} Be7 {[%emt 0:00:26]} 25. Rdc1 {[%emt 0:00:42]} Bxd3 {[%emt 0:01:25]} 26. Qxd3 {[%emt 0:00:01]} g6 {[%emt 0:01:55]} 27. Qc4 {[%emt 0:02:13]} Rca8 {[%emt 0:00:56]} 28. Kf2 {[%emt 0:00:31]} Kg7 {[%emt 0:00:50]} 29. Rb1 {[%emt 0:03:10]} R8a6 {[%emt 0:00:40]} 30. Nc1 {[%emt 0:00:35][%cal Bb3c1,Bc1d3,Bd3e5][%mdl 32]} R2a5 {[%emt 0:01:27]} 31. Nd3 {[%emt 0:00:44] Inhibits c5.} b3 {[%emt 0:00:00]} 32. Rc3 {[%emt 0:00:00]} Rb5 {[%emt 0:00:00][%cal Ba5b5,Bb5b4,Bb4a4,Ba4a2][%mdl 32]} 33. Ne5 {[%emt 0:00:00]} Bb4 {[%emt 0:00:00]} 34. Rd3 {[%emt 0:00:00]} (34. Rcc1 $5 {[%cal Rc4c6]}) 34... Qb7 {[%emt 0:00:00]} 35. Kf1 {[%emt 0:00:00]} Bd6 {[%emt 0:00:00]} 36. Nf3 {[%emt 0:00:00]} Rb4 {[%emt 0:00:00]} 37. Qc3 {[%emt 0:00:00] Strongly threatening d5+.} Kg8 {[%emt 0:00:00]} 38. Rc1 {[%emt 0:00:00]} Qb5 {[%emt 0:00:00]} 39. Kf2 {[%emt 0:00:00]} Rba4 {[%emt 0:00:00]} 40. Rdd1 {[%emt 0:02:14]} Bb4 {[%emt 0:00:00]} 41. Qd3 {[%emt 0:00:53]} Ra2 {[%emt 0:00:00]} 42. Rb1 {[%emt 0:00:19]} Ba3 {[%emt 0:00:00]} 43. Qxb5 {[%emt 0:02:52]} cxb5 {[%emt 0:00:00]} 44. Rd2 {[%emt 0:00:30]} Bxb2 {[%emt 0:00:00]} 45. Rdxb2 {[%emt 0:00:40]} ({Don't do} 45. Rbxb2 Rxb2 46. Rxb2 Ra2 $16) 45... Rxb2+ {[%emt 0:00:00]} 46. Rxb2 $14 {[%emt 0:03:58] KRN-KR} Ra2 {[%emt 0:00:00]} 47. Re2 {[%emt 0:00:00] [#] And now Nd2 would win.} Rc2 {[%emt 0:00:33][%mdl 8192]} (47... b2 $1 $14 48. Nd2 Ra1) 48. Nd2 $18 {[%emt 0:00:00]} Rb2 {[%emt 0:04:21]} 49. e4 {[%emt 0:00:00]} Kf8 {[%emt 0:00:50]} 50. Ke1 {[%emt 0:00:00] Weighted Error Value: White=0.09 (flawless) /Black=0.20 (precise)} 1-0

[Event "Cattolica Chess Festival 2022"]
[Site "Cattolica"]
[Date "2022.06.08"]
[Round "5.5"]
[White "Padmini, Rout"]
[Black "Jobava, Baadur"]
[Result "1/2-1/2"]
[ECO "C42"]
[WhiteElo "2348"]
[BlackElo "2600"]
[Annotator "TA"]
[PlyCount "20"]
[EventDate "2022.06.04"]
[EventCountry "ITA"]
[SourceTitle "playchess.com"]
[Source "ChessBase"]
[SourceQuality "1"]
[TimeControl "5400+30"]

{[%evp 14,20,20,14,25,12,16,8,19]} 1. e4 {[%emt 0:30:04]} e5 {[%emt 0:35:54]} 2. Nf3 {[%emt 0:00:03]} Nf6 {[%emt 0:00:02]} 3. Nxe5 {[%emt 0:00:08]} d6 {[%emt 0:00:03]} 4. Nf3 {[%emt 0:00:05]} Nxe4 {[%emt 0:00:05]} 5. Qe2 {[%emt 0:00:04]} Qe7 {[%emt 0:00:03]} 6. d3 {[%emt 0:00:06]} Nf6 {[%emt 0:00:02]} 7. Nc3 {[%emt 0:00:06]} Qxe2+ {[%emt 0:00:04]} 8. Bxe2 {[%emt 0:00:04]} Be7 {[%emt 0:00:02] C42: Petroff Defence: 3 Nxe5 and unusual White 3rd moves.} 9. h3 {[%emt 0:00:07]} O-O {[%emt 0:00:03]} 10. Be3 {[%emt 0:00:07] [#]} Re8 $146 {[%emt 0:00:02] An uneventful encounter.  Weighted Error Value: White=0.10 (very precise) /Black=0.04 (flawless)} ({Predecessor:} 10... Bd7 11. O-O-O Bc6 12. d4 Ne4 13. Nb5 Bxb5 14. Bxb5 c6 15. Bd3 d5 16. c4 {½-½ (16) Gonzalez Garcia,J (2431)-Sequera Paolini,J (2392) Santa Clara 2003}) 1/2-1/2

[Event "Cattolica Chess Festival 2022"]
[Site "Cattolica"]
[Date "2022.06.08"]
[Round "5.6"]
[White "Aslanov, Umid"]
[Black "Korneev, Oleg"]
[Result "1/2-1/2"]
[ECO "B42"]
[WhiteElo "2281"]
[BlackElo "2521"]
[Annotator "TA"]
[PlyCount "86"]
[EventDate "2022.06.04"]
[EventCountry "ITA"]
[SourceTitle "playchess.com"]
[Source "ChessBase"]
[SourceQuality "1"]
[TimeControl "5400+30"]

{[%evp 11,86,34,27,25,24,21,27,27,19,23,27,15,27,25,37,37,28,27,43,44,62,0,0,0,21,0,0,0,8,-1,-16,-7,0,0,0,0,0,-20,12,13,43,18,19,19,22,25,17,35,106,83,120,56,68,55,64,80,58,66,151,151,268,268,268,142,141,149,141,99,99,99,99,0,99,0,107,78,78]} 1. e4 {[%emt 0:30:02]} c5 {[%emt 0:33:31]} 2. Nf3 {[%emt 0:00:12][%cal Bg1f3,Bf3d4,Bd4e2,Be2g3][%mdl 32]} e6 {[%emt 0:00:30]} 3. d4 {[%emt 0:00:10]} cxd4 {[%emt 0:00:04]} 4. Nxd4 {[%emt 0:00:08]} a6 {[%emt 0:00:03]} 5. Bd3 {[%emt 0:00:49]} Nf6 {[%emt 0:01:55]} 6. O-O {[%emt 0:00:42]} e5 {[%emt 0:00:06]} 7. Ne2 {[%emt 0:03:19] B42: Sicilian: Kan Variation: 5 Bd3.} Bc5 {[%emt 0:01:27] [#]} 8. c4 $146 {[%emt 0:01:40]} ({Predecessor:} 8. Ng3 O-O 9. Nc3 d6 10. Bg5 h6 11. Bxf6 Qxf6 12. Nd5 Qd8 13. c3 Be6 14. b4 Ba7 {1-0 (55) Klauser,M (2400)-Hakimifard,G (2270) Flims 2021}) 8... d6 {[%emt 0:00:59]} 9. h3 {[%emt 0:01:23] White has an edge.} Nc6 {[%emt 0:03:11]} 10. Nbc3 {[%emt 0:01:32]} O-O {[%emt 0:04:16]} 11. a3 {[%emt 0:02:17]} a5 {[%emt 0:10:38]} 12. Ng3 {[%emt 0:12:54]} h6 {[%emt 0:14:29]} 13. Rb1 {[%emt 0:02:56]} Bd7 {[%emt 0:04:15]} 14. Be3 {[%emt 0:09:20]} Bxe3 {[%emt 0:06:07]} 15. fxe3 {[%emt 0:00:08]} g6 {[%emt 0:00:39]} 16. b4 {[%emt 0:02:32]} ({White should try} 16. b3 $14) 16... axb4 $11 {[%emt 0:00:07]} 17. axb4 {[%emt 0:00:09]} Kg7 {[%emt 0:03:40]} 18. Be2 {[%emt 0:06:23]} Be6 {[%emt 0:04:28]} 19. Nb5 {[%emt 0:02:18]} Ne8 {[%emt 0:00:54]} 20. Qd2 {[%emt 0:04:29]} Na7 {[%emt 0:03:38] White must now prevent ...Nxb5.} 21. Nc3 {[%emt 0:01:48]} Rc8 {[%emt 0:01:49]} 22. Nd5 {[%emt 0:00:41]} Nc6 {[%emt 0:00:03]} 23. Kh2 {[%emt 0:01:41]} Ne7 {[%emt 0:00:33]} 24. Rfc1 {[%emt 0:06:50]} b6 {[%emt 0:00:14]} 25. Ra1 {[%emt 0:01:37]} Bxd5 {[%emt 0:00:33]} (25... h5 {is more complex.} 26. Bd3 Nf6 27. Rf1 Bxd5 28. cxd5 Ra8) 26. cxd5 {[%emt 0:00:23]} Rxc1 {[%emt 0:03:24]} 27. Qxc1 {[%emt 0:00:45]} Nf6 {[%emt 0:01:26]} 28. Ra7 {[%emt 0:00:40]} h5 {[%emt 0:00:20]} 29. Bd3 {[%emt 0:01:00]} Nc8 {[%emt 0:00:28]} (29... Neg8 $14) 30. Rc7 {[%emt 0:01:54] White is much more active. The black rooks are badly placed.} Ng4+ {[%emt 0:00:43] [#]} 31. hxg4 {[%emt 0:00:00]} (31. Kg1 $1 $16 Nxe3 32. Ne2 (32. Rxc8 Qxc8 33. Qxe3 Qc3 $11)) 31... Qh4+ $14 {[%emt 0:00:00]} 32. Kg1 {[%emt 0:00:00]} Qxg3 {[%emt 0:00:00]} 33. gxh5 {[%emt 0:00:00] Hoping for Ba6.} Qg5 {[%emt 0:00:00]} 34. hxg6 {[%emt 0:00:00]} Ne7 {[%emt 0:00:00]} ({Black should play} 34... Kxg6 $14 35. Qe1 Kg7) 35. gxf7 $16 {[%emt 0:00:00]} Ng6 {[%emt 0:00:00]} (35... Rxf7 $16 36. Qe1 Ng6 37. Rxf7+ Kxf7 38. Qf2+ Kg7) 36. Qd2 $18 {[%emt 0:00:35]} Nh8 {[%emt 0:00:00][%cal Bg6h8,Bh8f7,Bf7g5][%mdl 32]} 37. Rb7 {[%emt 0:01:04]} (37. Be2 $18) 37... Rxf7 $16 {[%emt 0:00:00]} 38. Rxf7+ {[%emt 0:00:54]} ({Don't play} 38. Rxb6 $6 Ng6 $11) 38... Nxf7 {[%emt 0:00:00] KQB-KQN} 39. Qf2 {[%emt 0:01:01] Prevents Qh4.} Qg4 {[%emt 0:00:00]} 40. Qf3 {[%emt 0:00:09]} Qh4 {[%emt 0:00:00]} 41. Qf2 {[%emt 0:06:35]} Qg4 {[%emt 0:00:00]} 42. Qf3 {[%emt 0:00:00]} Qh4 {[%emt 0:00:00]} 43. g3 {[%emt 0:00:00]} Ng5 {[%emt 0:00:35] Weighted Error Value: White=0.18 (very precise) /Black=0.11 (very precise)} 1/2-1/2

[Event "Cattolica Chess Festival 2022"]
[Site "Cattolica"]
[Date "2022.06.08"]
[Round "5.7"]
[White "Shahil Dey"]
[Black "Milikow, Yoav"]
[Result "1-0"]
[ECO "C07"]
[WhiteElo "2369"]
[BlackElo "2410"]
[Annotator "TA"]
[PlyCount "35"]
[EventDate "2022.06.04"]
[EventCountry "ITA"]
[SourceTitle "playchess.com"]
[Source "ChessBase"]
[SourceQuality "1"]
[TimeControl "5400+30"]

{[%evp 11,35,4,16,0,23,17,56,0,15,26,20,7,8,13,9,13,7,12,31,42,82,37,225,236,916,895]} 1. e4 {[%emt 0:30:02]} e6 {[%emt 0:30:23]} 2. d4 {[%emt 0:00:06]} d5 {[%emt 0:00:05]} 3. Nd2 {[%emt 0:00:08][%cal Bb1d2,Bd2e4,Be4c3][%mdl 32]} c5 {[%emt 0:00:31]} 4. Ngf3 {[%emt 0:00:13]} cxd4 {[%emt 0:01:00]} 5. Nxd4 {[%emt 0:00:33]} Nf6 {[%emt 0:01:01]} 6. exd5 {[%emt 0:00:12]} Nxd5 {[%emt 0:01:07] is more profitable than 6...Qxd5 at the moment.} 7. Ne4 {[%emt 0:00:36] C07: French Tarrasch: 3...c5, 4 Ngf3 and 4 exd5 Qxd5.} Bd7 {[%emt 0:03:14]} 8. Bc4 {[%emt 0:02:26]} Nc6 {[%emt 0:02:54]} 9. O-O {[%emt 0:01:27]} (9. Nb5 $1 $14) 9... Be7 {[%emt 0:02:02]} 10. Bxd5 {[%emt 0:03:33]} exd5 {[%emt 0:00:07]} 11. Nc3 {[%emt 0:00:20] [#]} Bc8 $146 {[%emt 0:02:15]} ({Predecessor:} 11... Be6 12. Re1 Nxd4 13. Qxd4 O-O 14. Bf4 Qa5 15. Be5 Bc5 16. Qf4 Rfe8 17. Rad1 Rac8 {½-½ (82) Kovalev,V (2637)-Holt,C (2549) Chess.com INT 2021}) 12. Be3 {[%emt 0:09:47]} O-O {[%emt 0:01:03]} 13. Qh5 {[%emt 0:03:05]} Bf6 {[%emt 0:01:21]} 14. Rad1 {[%emt 0:01:53]} Ne5 {[%emt 0:01:47] Strongly threatening ...Bg4.} 15. h3 {[%emt 0:01:05] Against Bg4} b6 {[%emt 0:09:04]} 16. Nf5 {[%emt 0:16:41] White is more active. Pair of Knights!} Bb7 {[%emt 0:04:39] [#]} (16... Be6 $14) 17. Ne4 $1 $18 {[%emt 0:02:58] aiming for Bg5.} g6 $2 {[%emt 0:01:30]} (17... Ng6 18. Bg5 dxe4) 18. Qh6 {[%emt 0:02:10] Weighted Error Value: White=0.09 (flawless) /Black=0.53} 1-0